bitfinex-derivatives/quotes_ETHF0:USTF0_20250831
["timestamp","ask_amount","ask_price","bid_price","bid_amount"]
[1756643578931,0.4739,4480.7,4480.6,0.4276]
[1756643579135,0.4739,4480.7,4480.6,0.227]
[1756643580328,0.4739,4480.3,4480.2,35.3428]
[1756643580725,4.4739,4480.3,4480.2,35.5698]
[1756643582225,4.4739,4480.3,4480.2,3.2078]
[1756643582427,4.4739,4480.3,4480.2,3.4348]
[1756643582633,4.4739,4480.3,4479.7,3.2078]
[1756643582833,0.4739,4480.3,4479.8,0.227]
[1756643583726,0.4739,4480.0,4479.7,3.2078]
[1756643583931,0.4739,4479.9,4479.8,0.227]
[1756643584128,0.4739,4479.9,4479.7,3.2078]
[1756643584430,0.1856,4479.4,4479.0,0.275]
[1756643584630,3.2078,4479.8,4479.1,0.227]
[1756643584931,0.4739,4479.2,4479.1,0.227]
[1756643585328,3.2078,4479.8,4478.9,3.2078]
[1756643585523,0.4739,4479.0,4478.9,3.2078]
[1756643585721,0.2883,4478.9,4478.7,32.138]
[1756643585922,0.4739,4478.8,4478.7,32.138]
[1756643586328,0.4739,4478.8,4478.7,32.365]
[1756643586832,0.4739,4478.8,4478.7,0.227]
[1756643587934,0.2939,4478.7,4478.6,0.227]
[1756643588134,0.4834,4478.7,4478.6,0.227]
[1756643588530,0.4834,4478.7,4478.6,0.4262]
[1756643588735,0.2939,4479.3,4479.2,0.1992]
[1756643589035,0.4834,4479.3,4479.2,0.7142]
[1756643589430,0.4834,4479.3,4479.2,0.4262]
[1756643589636,0.4834,4479.3,4479.2,0.227]
[1756643590231,0.4834,4479.3,4479.2,0.4262]
[1756643590436,0.4834,4479.3,4479.2,0.7142]
[1756643592238,0.4834,4479.3,4479.2,0.227]
[1756643592433,0.1895,4478.6,4478.5,0.4872]
[1756643592627,0.4834,4478.6,4478.5,0.7142]
[1756643594440,0.4834,4478.4,4478.3,3.2078]
[1756643594640,0.4834,4478.4,4478.3,3.4348]
[1756643594842,0.4834,4478.4,4478.3,0.227]
[1756643595644,3.6912,4478.4,4478.3,0.227]
[1756643595942,0.4834,4478.4,4478.3,0.227]
[1756643596138,0.1895,4477.8,4477.7,0.4872]
[1756643596336,0.4834,4477.8,4477.7,0.7142]
[1756643596734,0.2939,4477.7,4477.1,32.43]
[1756643596937,0.4834,4477.2,4477.1,32.43]
[1756643597142,0.4834,4477.2,4477.1,32.658]
[1756643598045,0.4834,4477.2,4477.1,32.43]
[1756643598247,0.4834,4477.2,4477.1,32.37]
[1756643599246,0.4834,4477.2,4476.8,0.228]
[1756643600148,0.4834,4477.2,4476.8,0.516]
[1756643600448,0.4834,4476.9,4476.8,0.7152]
[1756643600649,0.2939,4477.6,4476.9,0.288]
[1756643600850,0.4834,4477.6,4477.5,0.1992]
[1756643601050,0.4834,4477.6,4477.5,0.4872]
[1756643607569,0.2939,4477.9,4477.5,3.695]
[1756643607858,0.2939,4478.2,4477.6,0.40193]
[1756643608062,0.4834,4478.2,4478.1,0.4872]
[1756643609061,0.4834,4478.2,4478.1,0.1992]
[1756643610268,0.4834,4478.2,4478.1,0.4872]
[1756643612369,0.4834,4478.2,4477.8,0.40192]
[1756643612573,0.4834,4478.2,4477.9,0.228]
[1756643612869,0.4834,4478.2,4477.9,0.516]
[1756643613070,0.1895,4478.0,4477.9,0.7152]
[1756643613271,0.4834,4478.0,4477.9,0.7152]
[1756643614569,3.2078,4478.4,4477.9,0.7152]
[1756643614774,32.151,4480.0,4477.9,0.7152]
[1756643614775,0.2939,4478.5,4478.4,0.1992]
[1756643614962,0.4834,4478.5,4478.4,0.1992]
[1756643615272,0.4834,4478.5,4478.4,0.4872]
[1756643615668,0.4834,4478.5,4478.4,0.1992]
[1756643615975,0.4834,4478.5,4478.4,0.4872]
[1756643616976,0.4834,4478.8,4478.7,0.4872]
[1756643617572,0.4834,4478.9,4478.8,0.4872]
[1756643619066,0.2777,4480.3,4479.8,0.194]
[1756643619272,0.4707,4480.0,4479.9,0.7143]
[1756643619570,0.4707,4479.7,4479.1,3.2078]
[1756643619776,0.4707,4479.2,4479.1,3.4358]
[1756643619970,0.4707,4479.2,4479.1,3.2078]
[1756643620171,0.4707,4479.2,4478.7,0.228]
[1756643620375,0.4707,4478.8,4478.6,32.159]
[1756643620670,0.4707,4478.7,4478.6,32.159]
[1756643620870,3.6785,4478.7,4478.5,0.228]
[1756643621175,0.4707,4478.6,4478.5,0.228]
[1756643623377,0.4707,4478.6,4478.5,0.7153]
[1756643624378,0.2777,4479.3,4478.5,0.422]
[1756643624580,0.2777,4479.3,4478.6,0.2933]
[1756643626184,0.4707,4479.3,4479.2,0.194]
[1756643626978,32.158,4480.9,4479.2,0.4873]
[1756643626979,3.2078,4480.0,4479.2,0.4873]
[1756643627284,0.4707,4479.4,4479.3,0.4873]
[1756643628484,0.193,4479.4,4479.3,0.4873]
[1756643628680,3.2078,4480.0,4479.3,0.194]
[1756643628981,0.193,4479.7,4479.5,0.69506]
[1756643629185,0.2777,4479.9,4479.4,3.2078]
[1756643629186,0.4707,4480.2,4480.1,0.194]
[1756643629387,0.4707,4480.2,4480.1,0.4873]
[1756643629777,0.4707,4480.2,4480.1,0.194]
[1756643629983,0.4707,4480.2,4480.1,0.4873]
[1756643632786,0.4707,4480.2,4480.1,0.7143]
[1756643634188,0.4707,4480.2,4480.1,0.421]
[1756643634588,0.4707,4480.2,4480.1,0.7143]
[1756643636794,0.4707,4480.2,4480.1,0.227]
[1756643637993,0.4707,4480.0,4479.9,3.6951]
[1756643638195,0.193,4479.3,4479.2,3.2078]
[1756643638490,0.4707,4479.3,4479.2,3.2078]
[1756643640493,0.4707,4479.3,4479.2,3.6951]
[1756643640991,0.2777,4480.3,4479.2,3.4018]
[1756643641194,0.4707,4480.3,4480.2,0.4873]
[1756643641387,0.4707,4480.3,4480.2,0.7153]
[1756643642195,0.4707,4480.3,4480.2,0.422]
[1756643642394,0.4707,4480.3,4480.2,0.228]
[1756643644998,0.4707,4480.3,4480.2,0.422]
[1756643645299,0.4707,4480.3,4480.2,0.7153]
[1756643651504,3.2078,4480.9,4480.2,0.7153]
[1756643651697,0.4701,4480.8,4480.7,0.4844]
[1756643652299,33.35865083,4482.4,4481.2,0.1843]
[1756643652300,3.2078,4482.2,4481.2,0.1843]
[1756643652497,0.2843,4482.0,4481.3,0.3001]
[1756643652694,0.1858,4481.4,4481.3,0.4844]
[1756643652891,0.4701,4481.4,4481.3,0.4844]
[1756643655598,0.4701,4481.4,4481.2,0.228]
[1756643655794,0.1858,4481.4,4481.2,0.5281]
[1756643655995,0.4701,4481.3,4481.2,0.7124]
[1756643656292,0.4701,4481.3,4481.2,0.5281]
[1756643656498,0.4701,4481.3,4481.2,0.7124]
[1756643660601,0.4701,4481.3,4481.2,0.7114]
[1756643665400,0.4701,4481.3,4480.6,3.2078]
[1756643665401,0.2843,4481.2,4480.7,0.3001]
[1756643665605,0.4701,4480.7,4480.6,3.9192]
[1756643666001,0.4701,4480.7,4480.6,3.3921]
[1756643666200,0.4701,4480.7,4480.6,3.6191]
[1756643666395,0.4701,4480.7,4480.6,3.9192]
[1756643667107,0.4701,4480.7,4480.6,0.4113]
[1756643667613,0.4701,4480.7,4480.6,0.7114]
[1756643669607,0.4701,4480.7,4480.6,0.4844]
[1756643669801,0.4701,4480.7,4480.6,0.7114]
[1756643672910,3.2078,4481.5,4480.7,0.3001]
[1756643673208,0.50746,4481.4,4480.7,0.3001]
[1756643673609,0.22316,4481.3,4480.7,0.3001]
[1756643673910,0.2843,4481.4,4480.7,0.3001]
[1756643674113,0.4701,4481.2,4481.1,0.1843]
[1756643674311,0.4701,4481.2,4481.1,0.4844]
[1756643675209,0.4701,4481.2,4481.1,0.1843]
[1756643675603,0.4701,4481.2,4481.1,0.4844]
[1756643676009,0.4701,4481.2,4481.1,0.1843]
[1756643676504,0.4701,4481.2,4481.1,0.4844]
[1756643680604,3.6771,4481.5,4481.4,0.189]
[1756643680805,3.6771,4481.5,4481.4,0.4706]
[1756643685415,0.4693,4481.5,4481.4,0.4706]
[1756643686213,3.6771,4481.5,4481.4,0.4706]
[1756643686813,0.4693,4481.5,4481.4,0.4706]
[1756643687606,3.6771,4481.5,4481.4,0.4706]
[1756643687917,3.6771,4481.5,4481.4,0.189]
[1756643688117,0.4693,4481.5,4481.4,0.189]
[1756643688414,3.6771,4481.5,4480.6,3.2078]
[1756643688614,0.2855,4480.7,4480.3,0.2816]
[1756643688914,0.4693,4480.4,4480.3,0.227]
[1756643689717,0.4693,4480.4,4480.2,0.227]
[1756643689913,0.1838,4480.4,4480.1,0.2816]
[1756643690113,0.4693,4480.3,4480.2,0.2816]
[1756643690317,0.4693,4480.3,4480.2,0.5086]
[1756643690814,0.4693,4480.3,4480.2,0.6976]
[1756643692613,0.2855,4480.9,4480.2,0.416]
[1756643692920,0.4693,4480.9,4480.8,0.4706]
[1756643694321,0.4693,4481.4,4481.3,0.189]
[1756643694524,0.4693,4481.4,4481.3,0.4706]
[1756643698430,0.1838,4481.4,4480.5,3.2078]
[1756643698730,0.2855,4481.0,4480.7,0.4706]
[1756643698926,0.2855,4481.4,4480.9,0.2816]
[1756643699528,0.4693,4481.4,4481.3,0.4706]
[1756643700730,0.1838,4481.4,4480.9,0.2816]
[1756643700931,0.227,4482.5,4480.9,0.2816]
[1756643700932,0.1838,4481.0,4480.9,0.2816]
[1756643701230,0.1838,4481.0,4480.9,0.6976]
[1756643701231,0.4693,4481.0,4480.9,0.6976]
[1756643701536,0.4693,4481.0,4480.9,0.4706]
[1756643701732,0.2855,4480.7,4480.5,3.2078]
[1756643702032,0.2855,4480.7,4480.6,0.227]
[1756643702231,0.4693,4480.7,4480.6,0.227]
[1756643702429,0.4693,4480.7,4480.5,3.2078]
[1756643702633,0.4693,4480.6,4480.5,3.2078]
[1756643702832,0.4693,4480.6,4480.5,3.4348]
[1756643703027,25.5294,4480.8,4480.5,3.4348]
[1756643703236,25.5294,4480.8,4480.6,0.40167]
[1756643704637,25.8149,4480.8,4480.6,0.40167]
[1756643704836,25.8149,4480.8,4480.5,3.4348]
[1756643705336,25.5294,4480.8,4480.5,3.4348]
[1756643705641,0.2855,4480.7,4480.5,3.4348]
[1756643706332,25.7132,4480.8,4480.5,3.4348]
[1756643706635,0.2855,4480.7,4480.6,0.227]
[1756643708740,0.4693,4480.7,4480.6,0.227]
[1756643709032,0.4721,4480.6,4480.5,3.2078]
[1756643709233,0.4721,4480.6,4480.5,3.4348]
[1756643709537,0.4721,4480.6,4480.5,3.2078]
[1756643709735,0.4721,4480.6,4480.5,3.4348]
[1756643710234,0.4721,4480.6,4480.3,0.40169]
[1756643710235,0.19,4479.9,4479.4,3.2078]
[1756643710432,0.4721,4479.5,4479.4,3.2078]
[1756643710628,0.4721,4479.5,4479.4,3.4348]
[1756643711642,0.4721,4479.5,4479.4,3.61598875]
[1756643712439,0.4721,4479.5,4479.4,3.2078]
[1756643712636,0.4721,4479.5,4479.4,3.4348]
[1756643715944,0.4721,4479.5,4479.4,3.2078]
[1756643716145,0.4721,4479.5,4479.4,3.4348]
[1756643716746,0.4721,4479.5,4479.4,3.2078]
[1756643717039,0.4721,4479.5,4479.4,3.4348]
[1756643717244,0.4721,4479.5,4479.4,3.2078]
[1756643717444,0.4721,4479.5,4479.4,3.4348]
[1756643717840,4.4721,4479.5,4479.4,3.2078]
[1756643718140,4.4721,4479.5,4479.4,3.4348]
[1756643720347,4.4721,4479.5,4479.4,0.227]
[1756643727249,0.19,4479.2,4479.1,32.138]
[1756643727439,3.2078,4479.3,4478.2,3.2078]
[1756643727639,0.4721,4478.3,4478.2,3.2078]
[1756643727845,0.4721,4478.3,4478.2,3.4348]
[1756643728255,0.2821,4478.3,4478.2,3.4348]
[1756643729746,0.2821,4479.7,4478.4,0.40186]
[1756643729951,0.2821,4479.7,4478.5,0.227]
[1756643730154,3.2078,4479.8,4478.5,0.227]
[1756643730354,0.2821,4479.7,4478.5,0.227]
[1756643730853,0.2821,4479.7,4478.9,3.2078]
[1756643731053,0.2821,4479.7,4479.0,0.227]
[1756643731248,0.2821,4480.1,4479.4,3.2078]
[1756643731457,0.2821,4480.7,4479.9,3.2078]
[1756643731650,0.4721,4480.7,4480.0,0.227]
[1756643731852,0.19,4480.7,4479.9,3.2078]
[1756643732051,0.2821,4481.2,4480.0,0.227]
[1756643732351,0.19,4480.1,4480.0,0.227]
[1756643732551,0.4721,4480.1,4480.0,0.227]
[1756643732956,0.4721,4480.1,4479.9,3.2078]
[1756643733151,0.4721,4480.0,4479.9,3.2078]
[1756643733351,0.4721,4480.0,4479.9,3.4348]
[1756643734154,0.2821,4480.0,4479.9,3.4348]
[1756643734357,0.4721,4480.9,4480.2,0.4017]
[1756643734556,0.4721,4480.9,4480.3,0.227]
[1756643734861,3.2078,4481.3,4480.3,0.227]
[1756643734862,0.2821,4480.8,4480.5,3.2078]
[1756643735055,3.2078,4481.3,4480.6,0.62866]
[1756643735257,0.2821,4481.2,4480.6,0.62866]
[1756643735555,0.2821,4481.1,4480.7,0.40165]
[1756643735758,0.19,4481.1,4480.7,0.40165]
[1756643735960,0.2821,4480.9,4480.7,0.40165]
[1756643736159,0.2821,4480.8,4480.7,0.40165]
[1756643736557,0.2821,4481.7,4480.6,0.227]
[1756643737358,0.2821,4481.7,4480.5,3.60948]
[1756643737561,0.2821,4481.7,4480.6,0.227]
[1756643738567,3.2078,4481.8,4480.6,0.227]
[1756643738767,0.2993,4481.7,4480.6,0.227]
[1756643738968,0.1902,4480.7,4480.5,3.2078]
[1756643739171,0.4895,4480.6,4480.5,3.2078]
[1756643739362,0.4895,4480.6,4480.5,3.4348]
[1756643739570,3.2078,4481.8,4480.8,0.40165]
[1756643739875,0.2993,4481.7,4480.9,0.227]
[1756643740171,0.2993,4481.7,4480.9,0.40606825]
[1756643740366,3.2078,4481.8,4480.9,0.40606825]
[1756643740767,0.2993,4481.7,4480.9,0.227]
[1756643741867,0.1902,4481.0,4480.6,0.5832398]
[1756643742173,0.4895,4480.8,4480.7,0.227]
[1756643742469,0.2993,4480.7,4480.5,3.2078]
[1756643742671,0.2993,4480.7,4480.6,0.227]
[1756643743171,0.70095,4480.7,4480.6,0.227]
[1756643743562,0.89115,4480.7,4480.6,0.227]
[1756643743767,0.2993,4480.6,4480.5,3.2078]
[1756643744067,0.2993,4480.6,4480.5,3.4348]
[1756643746573,0.2993,4480.6,4480.5,3.2078]
[1756643746770,0.2993,4480.6,4480.5,3.4348]
[1756643746966,0.40165,4480.7,4480.6,0.40167]
[1756643747473,0.2993,4481.3,4481.1,0.40162]
[1756643747668,0.2993,4481.7,4481.2,0.227]
[1756643747869,3.398,4481.8,4481.2,0.227]
[1756643748064,3.6973,4481.8,4481.2,0.227]
[1756643750166,0.4895,4481.8,4481.2,0.227]
[1756643750571,0.4895,4481.8,4481.2,3.4348]
[1756643750770,0.4895,4481.8,4481.2,0.227]
[1756643752377,0.4895,4481.4,4481.3,0.227]
[1756643752572,3.2078,4482.0,4480.6,3.60946]
[1756643752779,0.1902,4481.4,4480.7,0.227]
[1756643752977,0.1902,4481.4,4480.7,0.62866]
[1756643753172,0.2993,4481.3,4480.7,0.62866]
[1756643753369,0.2993,4481.9,4480.8,0.40165]
[1756643753685,3.2078,4482.0,4480.9,0.40164]
[1756643754072,0.1902,4481.2,4481.1,3.2078]
[1756643754277,0.2993,4481.1,4480.7,0.40165]
[1756643754480,0.1902,4481.1,4481.0,3.2078]
[1756643755180,0.4895,4481.1,4481.0,3.4348]
[1756643755779,0.4895,4481.1,4481.0,0.227]
[1756643756672,3.2078,4482.0,4480.7,0.40165]
[1756643756673,0.1902,4480.8,4480.7,0.40165]
[1756643756869,0.4895,4480.8,4480.7,3.4348]
[1756643757681,0.2993,4480.8,4480.7,3.4348]
[1756643757883,0.2993,4481.9,4480.8,0.40165]
[1756643758075,3.2078,4482.0,4480.8,0.40165]
[1756643758271,0.2993,4481.9,4480.7,3.4348]
[1756643758482,0.4895,4480.8,4480.7,3.2078]
[1756643758684,0.4895,4480.8,4480.7,3.4348]
[1756643760070,0.2993,4480.8,4480.7,3.4348]
[1756643760279,0.4895,4481.4,4480.7,3.83646]
[1756643760673,0.1902,4480.8,4480.7,3.2078]
[1756643760877,0.4895,4480.8,4480.7,3.4348]
[1756643761076,0.4895,4480.8,4480.7,3.2078]
[1756643761277,0.4895,4480.8,4480.7,3.4348]
[1756643761682,0.4895,4480.8,4480.7,3.2078]
[1756643761882,0.4895,4480.8,4480.7,3.4348]
[1756643762685,0.4895,4480.8,4480.7,0.227]
[1756643763086,0.4895,4480.6,4480.5,32.137]
[1756643763480,0.4895,4480.6,4480.5,32.364]
[1756643763881,0.2993,4481.4,4480.5,32.364]
[1756643764081,3.2078,4482.1,4480.9,3.2078]
[1756643764282,3.2078,4481.5,4481.0,0.227]
[1756643764478,0.1902,4481.2,4481.1,0.227]
[1756643764679,0.1902,4481.2,4480.5,32.137]
[1756643764879,0.1902,4480.7,4480.6,0.227]
[1756643765080,0.4895,4481.0,4480.6,0.227]
[1756643765387,0.2993,4480.9,4480.6,0.227]
[1756643765683,0.1902,4480.9,4480.6,0.227]
[1756643765884,0.4895,4480.7,4480.6,0.227]
[1756643766086,0.2993,4480.6,4480.5,32.137]
[1756643766385,0.2993,4480.6,4480.5,32.364]
[1756643766588,0.2993,4480.6,4480.5,32.137]
[1756643766888,0.2993,4480.6,4480.5,32.364]
[1756643767794,0.2834,4481.4,4480.5,32.364]
[1756643767988,0.2834,4481.3,4480.5,32.364]
[1756643768185,0.2834,4481.4,4480.5,32.364]
[1756643768488,0.2834,4481.2,4480.5,32.364]
[1756643768687,0.2834,4481.4,4480.5,32.364]
[1756643768889,0.2834,4481.3,4480.5,32.364]
[1756643769186,3.2078,4481.5,4480.5,32.364]
[1756643769388,0.4799,4480.6,4480.5,32.364]
[1756643769783,0.2834,4481.4,4480.5,32.364]
[1756643770186,0.4799,4481.4,4480.6,0.40166]
[1756643770480,0.4799,4481.4,4480.7,0.227]
[1756643770685,0.2834,4481.3,4480.8,0.227]
[1756643770878,3.2078,4481.5,4480.8,0.227]
[1756643770879,0.4799,4480.9,4480.8,0.227]
[1756643771491,0.2834,4480.8,4480.5,32.137]
[1756643771691,0.2834,4480.8,4480.6,0.227]
[1756643771990,0.2834,4481.0,4480.6,0.227]
[1756643772290,0.2834,4481.4,4480.6,0.227]
[1756643773589,0.2834,4481.3,4480.9,3.2078]
[1756643773792,0.2834,4481.3,4481.1,3.2078]
[1756643773991,0.2834,4481.3,4481.2,0.227]
[1756643774292,0.4799,4481.3,4481.2,0.227]
[1756643775392,0.4799,4481.3,4480.5,32.137]
[1756643775393,0.2834,4481.2,4480.5,32.137]
[1756643775592,0.4799,4480.7,4480.6,0.227]
[1756643776494,0.2834,4481.6,4480.6,0.227]
[1756643776896,3.2078,4481.7,4480.9,3.2078]
[1756643777095,0.2834,4481.6,4481.0,0.227]
[1756643777297,0.1965,4481.1,4481.0,0.227]
[1756643777596,0.4799,4481.1,4481.0,0.227]
[1756643777795,0.2834,4481.1,4481.0,0.227]
[1756643778301,0.4799,4481.1,4481.0,0.227]
[1756643780500,0.1965,4480.8,4480.5,32.137]
[1756643780700,0.4799,4480.7,4480.6,0.227]
[1756643781497,0.2834,4480.6,4480.5,32.137]
[1756643781697,0.2834,4480.6,4480.5,32.364]
[1756643782404,0.2834,4480.6,4480.5,32.137]
[1756643782596,0.2834,4480.6,4480.5,32.364]
[1756643783096,0.2834,4480.6,4480.5,32.137]
[1756643783301,3.2078,4481.5,4480.5,0.227]
[1756643783501,0.1965,4480.6,4480.5,0.227]
[1756643783999,0.1965,4480.3,4480.2,3.2078]
[1756643784194,0.4799,4480.3,4480.2,3.2078]
[1756643784392,0.2834,4480.2,4480.1,32.136]
[1756643784704,0.2834,4480.2,4480.1,32.363]
[1756643785103,4.2834,4480.2,4480.1,32.136]
[1756643785401,0.4799,4479.8,4479.7,3.2078]
[1756643785699,0.2834,4479.7,4478.9,3.2078]
[1756643785896,0.4799,4479.0,4478.9,3.2078]
[1756643786098,0.4799,4479.0,4478.9,3.4348]
[1756643786705,0.4799,4479.0,4478.9,3.6231]
[1756643786905,0.4799,4479.0,4478.9,3.902]
[1756643788307,0.2834,4480.2,4479.0,0.2789]
[1756643788504,0.2834,4480.2,4479.1,0.227]
[1756643788804,0.2834,4480.2,4479.2,0.2789]
[1756643789006,0.1965,4479.4,4479.3,0.4153]
[1756643789200,0.4799,4479.4,4479.3,0.6942]
[1756643795213,0.4799,4479.4,4479.3,0.227]
[1756643797814,0.1965,4479.4,4479.3,0.4173]
[1756643798017,0.1965,4479.4,4479.3,0.7168]
[1756643798217,3.2078,4479.7,4479.3,0.7168]
[1756643798414,3.2078,4479.7,4479.4,0.2995]
[1756643798612,3.6832,4479.7,4479.6,0.4898]
[1756643798814,3.6832,4479.7,4479.6,0.7168]
[1756643799112,3.6832,4479.7,4479.6,0.4173]
[1756643799518,3.6832,4479.7,4479.6,0.7168]
[1756643800517,3.6832,4479.7,4479.2,0.2995]
[1756643800813,3.6832,4479.7,4479.3,0.5265]
[1756643801017,3.2078,4479.7,4479.4,0.2995]
[1756643801217,0.1827,4479.5,4479.4,0.4898]
[1756643801417,0.4754,4479.5,4479.4,0.4898]
[1756643803625,0.4754,4479.5,4479.4,0.1903]
[1756643803925,0.4754,4479.5,4479.4,0.4898]
[1756643804623,0.4754,4479.9,4479.8,0.1903]
[1756643804824,0.1827,4479.9,4479.8,0.7168]
[1756643805124,32.136,4482.2,4479.8,0.7168]
[1756643805125,0.2927,4480.3,4479.9,0.2995]
[1756643805312,0.4754,4480.3,4480.2,0.4898]
[1756643805621,0.4754,4480.3,4480.2,0.7168]
[1756643808019,0.4754,4480.3,4479.5,0.40176]
[1756643808225,0.1827,4479.8,4479.7,0.2995]
[1756643808426,0.4754,4479.8,4479.7,0.4898]
[1756643810325,0.4754,4479.8,4479.7,0.7168]
[1756643811629,0.2927,4480.3,4479.7,1.11855]
[1756643811824,0.2927,4480.6,4480.5,0.1903]
[1756643812026,0.4754,4480.6,4480.5,0.7168]
[1756643812427,32.136,4482.2,4480.6,0.2995]
[1756643812428,0.2927,4481.1,4480.6,0.2995]
[1756643812631,3.2078,4481.7,4480.6,0.2995]
[1756643812632,0.1827,4480.7,4480.6,0.4898]
[1756643812927,0.4754,4480.7,4480.6,0.4898]
[1756643813733,3.2078,4481.7,4480.6,0.4898]
[1756643813925,0.2927,4481.6,4480.7,0.2995]
[1756643814633,0.2927,4481.6,4480.7,3.5073]
[1756643814828,0.4754,4481.6,4481.5,0.4898]
[1756643815029,0.4754,4481.6,4481.5,0.7168]
[1756643815329,0.4754,4481.6,4481.5,0.227]
[1756643815730,0.4754,4481.6,4481.5,0.4173]
[1756643815930,0.4754,4481.6,4481.5,0.7168]
[1756643819435,0.4754,4481.6,4481.5,0.4173]
[1756643820335,0.4754,4481.6,4481.5,0.7168]
[1756643823237,0.4754,4481.6,4481.5,0.4173]
[1756643823633,0.4754,4481.6,4481.5,0.7168]
[1756643824433,0.4754,4481.6,4481.5,0.4173]
[1756643824631,0.4754,4480.8,4480.7,3.2078]
[1756643824934,0.4754,4480.8,4480.7,0.227]
[1756643825333,0.4754,4480.8,4480.7,0.7168]
[1756643828538,0.4754,4480.8,4480.7,0.4898]
[1756643828736,0.4754,4480.8,4480.7,0.7168]
[1756643830341,3.2078,4481.2,4480.7,0.4173]
[1756643830537,0.4621,4481.1,4481.0,0.2001]
[1756643830840,0.4621,4481.1,4481.0,0.4837]
[1756643831339,0.2799,4481.0,4480.4,0.2836]
[1756643831557,0.4621,4480.6,4480.5,0.4837]
[1756643831730,0.4621,4480.6,4480.5,0.7107]
[1756643832535,0.1822,4481.1,4481.0,0.2001]
[1756643832741,3.2078,4481.2,4481.1,0.4837]
[1756643833246,3.6699,4481.2,4481.1,0.4837]
[1756643833943,3.6699,4481.2,4481.1,0.2001]
[1756643834344,3.6699,4481.2,4481.1,0.4271]
[1756643834639,3.6699,4481.2,4481.1,0.227]
[1756643835145,3.39,4481.2,4480.4,0.2836]
[1756643835443,0.4621,4480.6,4480.5,0.7107]
[1756643836945,0.4621,4480.6,4480.5,0.227]
[1756643837648,0.4621,4480.6,4480.5,0.4271]
[1756643838245,0.4621,4480.6,4480.5,0.227]
[1756643839051,0.4621,4480.6,4480.5,0.4271]
[1756643839447,0.4621,4480.6,4480.5,0.7107]
[1756643846955,0.2799,4480.9,4480.5,0.7107]
[1756643847261,0.4621,4480.7,4480.6,0.4837]
[1756643848259,0.4621,4480.7,4480.5,0.227]
[1756643849058,0.4621,4480.7,4480.6,0.4837]
[1756643849260,0.4621,4480.7,4480.6,0.7107]
[1756643851159,3.4877,4481.7,4481.1,0.60172]
[1756643851366,3.4877,4481.7,4481.4,0.2836]
[1756643851367,3.6699,4481.7,4481.4,0.2836]
[1756643851662,3.39,4481.7,4481.6,0.2001]
[1756643851861,0.1822,4481.7,4481.6,0.4837]
[1756643852263,0.4621,4481.7,4481.6,0.4837]
[1756643854160,0.4621,4481.7,4481.6,0.2001]
[1756643854661,0.4621,4481.7,4481.6,0.4837]
[1756643857869,3.6699,4481.7,4481.6,0.4837]
[1756643858868,3.6699,4481.7,4481.6,0.2001]
[1756643859366,3.6699,4481.7,4481.5,0.227]
[1756643861167,0.4621,4481.7,4481.5,0.227]
[1756643861367,3.2078,4482.2,4481.5,0.227]
[1756643861368,0.4588,4481.6,4481.5,0.7074]
[1756643861770,3.6666,4481.6,4481.5,0.7074]
[1756643863570,3.6666,4481.6,4481.5,0.4153]
[1756643863770,3.6666,4481.6,4481.5,0.227]
[1756643865071,3.6666,4481.6,4481.2,0.2921]
[1756643865272,3.6666,4481.6,4481.3,0.226]
[1756643866274,3.6666,4481.6,4481.3,0.5181]
[1756643866468,0.275,4481.5,4481.3,0.5181]
[1756643866668,0.4588,4481.4,4481.3,0.7064]
[1756643867673,0.275,4481.3,4480.5,0.2921]
[1756643867873,0.1838,4480.8,4480.7,0.1883]
[1756643868074,0.4588,4480.8,4480.7,0.4804]
[1756643868274,3.2078,4481.6,4480.7,0.1883]
[1756643868275,0.275,4481.5,4480.7,0.1883]
[1756643868470,0.275,4481.5,4480.8,0.2921]
[1756643869474,0.4588,4481.1,4481.0,0.4804]
[1756643870772,0.1838,4481.1,4481.0,0.226]
[1756643870965,0.4588,4481.1,4480.4,3.2078]
[1756643871170,0.4588,4480.5,4480.4,3.2078]
[1756643871371,0.4588,4480.5,4480.3,32.135]
[1756643871571,0.275,4480.4,4480.3,32.135]
[1756643872076,0.1838,4480.2,4480.1,0.226]
[1756643872276,0.4588,4480.2,4480.1,0.226]
[1756643873878,0.226,4480.9,4479.8,3.2078]
[1756643873879,0.1838,4479.9,4479.8,3.2078]
[1756643874080,0.4588,4479.9,4479.8,3.2078]
[1756643874281,0.4588,4479.9,4479.8,3.6882]
[1756643875274,0.4588,4479.9,4479.8,0.4804]
[1756643879585,0.4588,4479.9,4479.3,3.4999]
[1756643879785,0.1838,4479.5,4479.4,0.226]
[1756643879981,0.275,4479.4,4479.3,3.2078]
[1756643880186,0.4588,4479.4,4479.3,3.4338]
[1756643880380,0.4588,4479.4,4479.3,3.2078]
[1756643880582,3.6666,4479.4,4479.3,0.226]
[1756643880880,3.6666,4479.4,4479.2,0.226]
[1756643880881,3.3916,4479.4,4479.2,0.226]
[1756643881184,0.1838,4479.1,4479.0,0.226]
[1756643881385,0.4588,4479.1,4479.0,0.226]